fUSD/lending_fUSD_20240420
["ID","MTS","AMOUNT","RATE_DAILY","PERIOD"]
[323001682,1713581450477,-500.0,0.00015342,2]
[323001683,1713581450487,-500.0,0.00015342,2]
[323001684,1713581450496,-500.0,0.00015342,2]
[323001685,1713581450505,-500.0,0.00015342,2]
[323001686,1713581450515,-500.0,0.00015342,2]
[323001687,1713581450524,-700.57,0.00015342,2]
[323001688,1713581450533,-806.92,0.00015342,2]
[323001689,1713581450543,-1355.65,0.00015342,2]
[323001690,1713581450553,-500.0,0.00015342,2]
[323001691,1713581450562,-1135.39,0.00015342,2]
[323001692,1713581450572,-500.0,0.00015342,2]
[323001693,1713581450582,-500.0,0.00015342,2]
[323001694,1713581450594,-500.0,0.00015342,2]
[323001695,1713581450603,-1291.39,0.00015342,2]
[323001696,1713581450614,-500.0,0.00015342,2]
[323001697,1713581450623,-613.97,0.00015342,2]
[323001698,1713581450633,-500.0,0.00015342,2]
[323001699,1713581450645,-742.47,0.00015342,2]
[323001700,1713581450655,-563.86,0.00015342,2]
[323001701,1713581450665,-528.11,0.00015342,2]
[323001702,1713581450679,-500.0,0.00015342,2]
[323001703,1713581450689,-616.97,0.00015342,2]
[323001704,1713581450698,-500.0,0.00015342,2]
[323001705,1713581450708,-500.0,0.00015342,2]
[323001706,1713581450719,-2002.47,0.00015342,2]
[323001707,1713581450728,-500.0,0.00015342,2]
[323001708,1713581450738,-500.0,0.00015342,2]
[323001709,1713581450749,-503.20436968,0.00015342,2]
[323001710,1713581450759,-668.93,0.00015342,2]
[323001711,1713581450769,-1452.94,0.00015342,2]
[323001712,1713581450779,-850.5,0.00015342,2]
[323001713,1713581450789,-627.82,0.00015342,2]
[323001714,1713581450799,-742.59,0.00015342,2]
[323001715,1713581450809,-1006.61,0.00015342,2]
[323001716,1713581450819,-500.0,0.00015342,2]
[323001717,1713581450828,-613.84,0.00015342,2]
[323001718,1713581450840,-1206.16,0.00015342,2]
[323001719,1713581450850,-610.6,0.00015342,2]
[323001720,1713581450860,-956.94,0.00015342,2]
[323001721,1713581450869,-500.0,0.00015342,2]
[323001722,1713581450880,-657.61,0.00015342,2]
[323001723,1713581450889,-1142.79,0.00015342,2]
[323001724,1713581450900,-500.0,0.00015342,2]
[323001725,1713581450910,-540.86,0.00015342,2]
[323001726,1713581450919,-500.0,0.00015342,2]
[323001727,1713581450929,-500.0,0.00015342,2]
[323001728,1713581450938,-853.01,0.00015342,2]
[323001729,1713581450948,-500.0,0.00015342,2]
[323001730,1713581450958,-1791.44,0.00015342,2]
[323001731,1713581450967,-710.59,0.00015342,2]
[323001732,1713581450977,-500.0,0.00015342,2]
[323001733,1713581450987,-875.05,0.00015342,2]
[323001734,1713581450997,-500.0,0.00015342,2]
[323001735,1713581451007,-500.0,0.00015342,2]
[323001736,1713581451017,-2106.63,0.00015342,2]
[323001737,1713581451026,-500.0,0.00015342,2]
[323001738,1713581451036,-879.47,0.00015342,2]
[323001739,1713581451047,-500.0,0.00015342,2]
[323001740,1713581451057,-1783.28,0.00015342,2]
[323001741,1713581451067,-1851.35,0.00015342,2]
[323001742,1713581451077,-656.34,0.00015342,2]
[323001743,1713581451087,-1175.68,0.00015342,2]
[323001744,1713581451097,-500.0,0.00015342,2]
[323001745,1713581451106,-500.0,0.00015342,2]
[323001746,1713581451116,-500.0,0.00015342,2]
[323001747,1713581451126,-500.0,0.00015342,2]
[323001748,1713581451136,-1066.64,0.00015342,2]
[323001749,1713581451149,-500.0,0.00015342,2]
[323001750,1713581451159,-500.0,0.00015342,2]
[323001751,1713581451169,-500.0,0.00015342,2]
[323001752,1713581451179,-691.31,0.00015342,2]
[323001753,1713581451189,-518.24427123,0.00015342,2]
[323001754,1713581451199,-500.0,0.00015342,2]
[323001755,1713581451208,-500.0,0.00015342,2]
[323001756,1713581451218,-500.0,0.00015342,2]
[323001757,1713581451228,-2020.51,0.00015342,2]
[323001758,1713581451237,-721.5,0.00015342,2]
[323001759,1713581451246,-1530.18,0.00015342,2]
[323001760,1713581451256,-500.0,0.00015342,2]
[323001761,1713581451266,-500.0,0.00015342,2]
[323001762,1713581451276,-500.0,0.00015342,2]
[323001763,1713581451285,-848.69,0.00015342,2]
[323001764,1713581451294,-500.0,0.00015342,2]
[323001765,1713581451304,-1240.06,0.00015342,2]
[323001766,1713581451313,-800.87,0.00015342,2]
[323001767,1713581451323,-500.0,0.00015342,2]
[323001768,1713581451332,-500.0,0.00015342,2]
[323001769,1713581451342,-1012.53,0.00015342,2]
[323001770,1713581451352,-1404.07,0.00015342,2]
[323001771,1713581451363,-504.29213146,0.00015342,2]
[323001772,1713581451372,-1018.57,0.00015342,2]
[323001773,1713581451382,-500.0,0.00015342,2]
[323001774,1713581451392,-632.58,0.00015342,2]
[323001775,1713581451405,-500.0,0.00015342,2]
[323001776,1713581451415,-1701.46,0.00015342,2]
[323001777,1713581451425,-831.68,0.00015342,2]
[323001778,1713581451435,-244.14086125,0.00015342,2]
[323001779,1713581451445,-500.0,0.00015342,2]
[323001780,1713581451455,-510.50575539,0.00015342,2]
[323001781,1713581451465,-500.0,0.00015342,2]
[323001782,1713581451474,-1112.34,0.00015342,2]
[323001783,1713581451484,-500.0,0.00015342,2]
[323001784,1713581451493,-1695.7,0.00015342,2]
[323001785,1713581451502,-671.7,0.00015342,2]
[323001786,1713581451512,-500.0,0.00015342,2]
[323001787,1713581451521,-1212.76,0.00015342,2]
[323001788,1713581451531,-500.0,0.00015342,2]
[323001789,1713581451540,-500.0,0.00015342,2]
[323001790,1713581451550,-1772.19,0.00015342,2]
[323001791,1713581451559,-500.0,0.00015342,2]
[323001792,1713581451569,-500.0,0.00015342,2]
[323001793,1713581451579,-533.47,0.00015342,2]
[323001794,1713581451589,-500.0,0.00015342,2]
[323001795,1713581451599,-500.0,0.00015342,2]
[323001796,1713581451609,-525.93,0.00015342,2]
[323001797,1713581451618,-500.0,0.00015342,2]
[323001798,1713581451628,-571.37,0.00015342,2]
[323001799,1713581451638,-500.0,0.00015342,2]
[323001800,1713581451649,-519.61,0.00015342,2]
[323001801,1713581451658,-815.97,0.00015342,2]
[323001802,1713581451670,-500.0,0.00015342,2]
[323001803,1713581451681,-1679.01,0.00015342,2]
[323001804,1713581451692,-837.01,0.00015342,2]
[323001805,1713581451703,-150.0,0.00015342,2]
[323001806,1713581451716,-500.0,0.00015342,2]
[323001807,1713581451726,-500.0,0.00015342,2]
[323001808,1713581451736,-1632.28,0.00015342,2]
[323001809,1713581451746,-648.84,0.00015342,2]
[323001810,1713581451756,-1761.93,0.00015342,2]
[323001811,1713581451765,-500.0,0.00015342,2]
[323001812,1713581451776,-664.82,0.00015342,2]
[323001813,1713581451786,-500.0,0.00015342,2]
[323001814,1713581451796,-834.34,0.00015342,2]
[323001815,1713581451806,-1126.31,0.00015342,2]
[323001816,1713581451815,-537.31,0.00015342,2]
[323001817,1713581451826,-1431.44,0.00015342,2]
[323001818,1713581451836,-500.0,0.00015342,2]
[323001819,1713581451845,-880.9,0.00015342,2]
[323001820,1713581451855,-644.84,0.00015342,2]
[323001821,1713581451864,-500.0,0.00015342,2]
[323001822,1713581451873,-867.77,0.00015342,2]
[323001823,1713581451883,-719.69,0.00015342,2]
[323001824,1713581451893,-500.0,0.00015342,2]
[323001825,1713581451904,-500.0,0.00015342,2]
[323001826,1713581451914,-2999.16,0.00015342,2]
[323001827,1713581451924,-500.0,0.00015342,2]
[323001828,1713581451934,-500.0,0.00015342,2]
[323001829,1713581451943,-500.0,0.00015342,2]
[323001830,1713581451953,-677.1,0.00015342,2]
[323001831,1713581451962,-788.07,0.00015342,2]
[323001832,1713581451972,-1662.46,0.00015342,2]
[323001833,1713581451982,-500.0,0.00015342,2]
[323001834,1713581451991,-500.0,0.00015342,2]
[323001835,1713581452000,-500.0,0.00015342,2]
[323001836,1713581452010,-500.0,0.00015342,2]
[323001837,1713581452019,-500.0,0.00015342,2]
[323001838,1713581452029,-334.95461272,0.00015342,2]
[323001839,1713581452038,-500.0,0.00015342,2]
[323001840,1713581452048,-675.78,0.00015342,2]
[323001841,1713581452057,-500.0,0.00015342,2]
[323001842,1713581452067,-500.0,0.00015342,2]
[323001843,1713581452405,-911.84,0.00015342,2]
[323001844,1713581452414,-500.0,0.00015342,2]
[323001845,1713581452424,-504.92,0.00015342,2]
[323001846,1713581452433,-1937.79,0.00015342,2]
[323001847,1713581452443,-227.42947541,0.00015342,2]
[323001848,1713581452452,-1439.31,0.00015342,2]
[323001849,1713581452462,-1200.83,0.00015342,2]
[323001850,1713581452472,-500.0,0.00015342,2]
[323001851,1713581452481,-1173.13,0.00015342,2]
[323001852,1713581452491,-500.0,0.00015342,2]
[323001853,1713581452501,-500.0,0.00015342,2]
[323001854,1713581452510,-500.0,0.00015342,2]
[323001855,1713581452520,-305.512801,0.00015342,2]
[323001856,1713581452530,-695.75,0.00015342,2]
[323001857,1713581452539,-500.0,0.00015342,2]
[323001858,1713581452548,-500.0,0.00015342,2]
[323001859,1713581452558,-500.0,0.00015342,2]
[323001860,1713581452568,-500.0,0.00015342,2]
[323001861,1713581452577,-500.0,0.00015342,2]
[323001862,1713581452586,-2954.24,0.00015342,2]
[323001863,1713581452596,-738.43,0.00015342,2]
[323001864,1713581452605,-500.0,0.00015342,2]
[323001865,1713581452615,-500.0,0.00015342,2]
[323001866,1713581452625,-738.62,0.00015342,2]
[323001867,1713581452635,-1531.29,0.00015342,2]
[323001868,1713581452645,-500.0,0.00015342,2]
[323001869,1713581452655,-500.0,0.00015342,2]
[323001870,1713581452665,-500.0,0.00015342,2]
[323001871,1713581452675,-500.0,0.00015342,2]
[323001872,1713581452688,-500.0,0.00015342,2]
[323001873,1713581452697,-880.22,0.00015342,2]
[323001874,1713581452707,-681.78,0.00015342,2]
[323001875,1713581452717,-500.0,0.00015342,2]
[323001876,1713581452727,-3163.78,0.00015342,2]
[323001877,1713581452737,-1860.56,0.00015342,2]
[323001878,1713581452746,-500.0,0.00015342,2]
[323001879,1713581452756,-500.0,0.00015342,2]
[323001880,1713581452766,-1208.13,0.00015342,2]
[323001881,1713581452776,-500.0,0.00015342,2]
[323001882,1713581452786,-500.0,0.00015342,2]
[323001883,1713581452795,-500.0,0.00015342,2]
[323001884,1713581452805,-500.0,0.00015342,2]
[323001885,1713581452815,-1011.82,0.00015342,2]
[323001886,1713581452825,-567.38438379,0.00015342,2]
[323001887,1713581452835,-2064.67,0.00015342,2]
[323001888,1713581452845,-2269.51,0.00015342,2]
[323001889,1713581452856,-588.51,0.00015342,2]
[323001890,1713581452866,-1082.7,0.00015342,2]
[323001891,1713581452875,-707.79,0.00015342,2]
[323001892,1713581452885,-2196.55,0.00015342,2]
[323001893,1713581452895,-500.0,0.00015342,2]
[323001894,1713581452907,-537.5853154,0.00015342,2]
[323001895,1713581452916,-1050.5,0.00015342,2]
[323001896,1713581452925,-503.45062567,0.00015342,2]
[323001897,1713581452934,-500.0,0.00015342,2]
[323001898,1713581452943,-500.0,0.00015342,2]
[323001899,1713581452952,-2580.96,0.00015342,2]
[323001900,1713581452962,-500.0,0.00015342,2]
[323001901,1713581452971,-500.0,0.00015342,2]
[323001902,1713581452981,-506.07,0.00015342,2]
[323001903,1713581452991,-1342.56,0.00015342,2]
[323001904,1713581453000,-1090.32,0.00015342,2]
[323001905,1713581453009,-523.07,0.00015342,2]
[323001906,1713581453019,-500.0,0.00015342,2]
[323001907,1713581453028,-500.0,0.00015342,2]
[323001908,1713581453038,-500.0,0.00015342,2]
[323001909,1713581453048,-500.0,0.00015342,2]
[323001910,1713581453057,-1244.26,0.00015342,2]
[323001911,1713581453066,-500.0,0.00015342,2]
[323001912,1713581453075,-500.0,0.00015342,2]
[323001913,1713581453085,-1610.61,0.00015342,2]
[323001914,1713581453094,-731.32,0.00015342,2]
[323001915,1713581453103,-500.0,0.00015342,2]
[323001916,1713581453113,-602.63,0.00015342,2]
[323001917,1713581453123,-1736.83,0.00015342,2]
[323001918,1713581453132,-827.06,0.00015342,2]
[323001919,1713581453142,-500.0,0.00015342,2]
[323001920,1713581453152,-9671.9,0.00015342,2]
[323001921,1713581453162,-500.0,0.00015342,2]
[323001922,1713581453172,-29326.06,0.00015342,2]
[323001923,1713581453181,-602.73,0.00015342,2]
[323001924,1713581453191,-500.0,0.00015342,2]
[323001925,1713581453200,-500.0,0.00015342,2]
[323001926,1713581453210,-500.0,0.00015342,2]
[323001927,1713581453219,-500.0,0.00015342,2]
[323001928,1713581453229,-2236.21,0.00015342,2]
[323001929,1713581453238,-500.0,0.00015342,2]
[323001930,1713581453247,-3964.99,0.00015342,2]
[323001931,1713581453256,-500.0,0.00015342,2]
[323001932,1713581453265,-1363.71,0.00015342,2]
[323001933,1713581453275,-500.0,0.00015342,2]
[323001934,1713581453284,-3177.7,0.00015342,2]
[323001935,1713581453294,-500.0,0.00015342,2]
[323001936,1713581453306,-627.01,0.00015342,2]
[323001937,1713581453316,-2555.07,0.00015342,2]
[323001938,1713581453326,-500.0,0.00015342,2]
[323001939,1713581453335,-612.24112044,0.00015342,2]
[323001940,1713581453344,-622.22,0.00015342,2]
[323001941,1713581453354,-552.73,0.00015342,2]
[323001942,1713581453363,-5371.04,0.00015342,2]
[323001943,1713581453373,-532.22,0.00015342,2]
[323001944,1713581453382,-503.26473158,0.00015342,2]
[323001945,1713581453391,-500.0,0.00015342,2]
[323001946,1713581453403,-500.0,0.00015342,2]
[323001947,1713581453412,-500.0,0.00015342,2]
[323001948,1713581453421,-2233.1,0.00015342,2]
[323001949,1713581453430,-3349.39,0.00015342,2]
[323001950,1713581453439,-3693.09,0.00015342,2]
[323001951,1713581453448,-500.0,0.00015342,2]
[323001952,1713581453457,-2568.78,0.00015342,2]
[323001953,1713581453467,-703.0,0.00015342,2]
[323001954,1713581453477,-2147.87,0.00015342,2]
[323001955,1713581453486,-500.0,0.00015342,2]
[323001956,1713581453496,-500.0,0.00015342,2]
[323001957,1713581453506,-500.0,0.00015342,2]
[323001958,1713581453515,-515.74,0.00015342,2]
[323001959,1713581453525,-3415.08,0.00015342,2]
[323001960,1713581453534,-623.6,0.00015342,2]
[323001961,1713581453543,-1232.46,0.00015342,2]
[323001962,1713581453552,-1795.96,0.00015342,2]
[323001963,1713581453562,-1897.8,0.00015342,2]
[323001964,1713581453571,-500.0,0.00015342,2]
[323001965,1713581453581,-20854.06,0.00015342,2]
[323001966,1713581453591,-500.0,0.00015342,2]
[323001967,1713581453600,-500.0,0.00015342,2]
[323001968,1713581453609,-500.0,0.00015342,2]
[323001969,1713581453619,-3822.01,0.00015342,2]
[323001970,1713581453628,-900.6,0.00015342,2]
[323001971,1713581453637,-1307.93,0.00015342,2]
[323001972,1713581453647,-500.0,0.00015342,2]
[323001973,1713581453657,-786.68,0.00015342,2]
[323001974,1713581453667,-2946.36,0.00015342,2]
[323001975,1713581453679,-1619.25,0.00015342,2]
[323001976,1713581453689,-500.0,0.00015342,2]
[323001977,1713581453698,-500.0,0.00015342,2]
[323001978,1713581453708,-2741.04,0.00015342,2]
[323001979,1713581453718,-500.0,0.00015342,2]
[323001980,1713581453727,-500.0,0.00015342,2]
[323001981,1713581453737,-6890.25,0.00015342,2]
[323001982,1713581453746,-500.0,0.00015342,2]
[323001983,1713581453758,-500.0,0.00015342,2]
[323001984,1713581453767,-508.68,0.00015342,2]
[323001985,1713581453777,-185.75316677,0.00015342,2]
[323001986,1713581453786,-1436.43,0.00015342,2]
[323001987,1713581453796,-608.56,0.00015342,2]
[323001988,1713581453805,-6726.85,0.00015342,2]
[323001989,1713581453814,-1683.78,0.00015342,2]
[323001990,1713581453823,-746.83,0.00015342,2]
[323001991,1713581453834,-500.0,0.00015342,2]
[323001992,1713581453843,-500.0,0.00015342,2]
[323001993,1713581453852,-500.0,0.00015342,2]
[323001994,1713581453861,-17829.15,0.00015342,2]
[323001995,1713581453871,-563.52,0.00015342,2]
[323001996,1713581453880,-500.0,0.00015342,2]
[323001997,1713581453889,-500.0,0.00015342,2]
[323001998,1713581453899,-500.0,0.00015342,2]
[323001999,1713581453908,-2298.76,0.00015342,2]
[323002000,1713581453917,-1190.45,0.00015342,2]
[323002001,1713581453927,-2282.78,0.00015342,2]
[323002002,1713581453936,-500.0,0.00015342,2]
[323002003,1713581453945,-500.0,0.00015342,2]
[323002004,1713581453954,-901.74,0.00015342,2]
[323002005,1713581453964,-757.66,0.00015342,2]
[323002006,1713581453974,-516.93,0.00015342,2]
[323002007,1713581453984,-500.0,0.00015342,2]
[323002008,1713581453993,-2207.84,0.00015342,2]
[323002009,1713581454003,-500.0,0.00015342,2]
[323002010,1713581454012,-500.0,0.00015342,2]
[323002011,1713581454022,-618.78,0.00015342,2]
[323002012,1713581454032,-783.64,0.00015342,2]
[323002013,1713581454041,-500.0,0.00015342,2]
[323002014,1713581454051,-26638.43,0.00015342,2]
[323002015,1713581454060,-500.0,0.00015342,2]
[323002016,1713581454070,-500.0,0.00015342,2]
[323002017,1713581454079,-598.16,0.00015342,2]
[323002018,1713581454090,-601.99,0.00015342,2]
[323002019,1713581454099,-500.0,0.00015342,2]
[323002020,1713581454109,-2859.16,0.00015342,2]
[323002021,1713581454118,-2576.29,0.00015342,2]
[323002022,1713581454128,-1162.52,0.00015342,2]
[323002023,1713581454137,-4110.36,0.00015342,2]
[323002024,1713581454147,-500.0,0.00015342,2]
[323002025,1713581454157,-618.17,0.00015342,2]
[323002026,1713581454167,-777.87,0.00015342,2]
[323002027,1713581454177,-500.0,0.00015342,2]
[323002028,1713581454186,-696.03,0.00015342,2]
[323002029,1713581454195,-1579.64,0.00015342,2]
[323002030,1713581454205,-500.0,0.00015342,2]
[323002031,1713581454215,-2000.42,0.00015342,2]
[323002032,1713581454225,-771.68,0.00015342,2]
[323002033,1713581454235,-2465.84,0.00015342,2]
[323002034,1713581454245,-1555.85,0.00015342,2]
[323002035,1713581454254,-2244.12,0.00015342,2]
[323002036,1713581454264,-500.0,0.00015342,2]
[323002037,1713581454274,-500.0,0.00015342,2]
[323002038,1713581454283,-679.84,0.00015342,2]
[323002039,1713581454293,-500.0,0.00015342,2]
[323002040,1713581454303,-896.25,0.00015342,2]
[323002041,1713581454312,-500.0,0.00015342,2]
[323002042,1713581454322,-500.0,0.00015342,2]
[323002043,1713581454332,-500.0,0.00015342,2]
[323002044,1713581454341,-2764.79,0.00015342,2]
[323002045,1713581454350,-500.0,0.00015342,2]
[323002046,1713581454360,-1979.75,0.00015342,2]
[323002047,1713581454369,-708.2,0.00015342,2]
[323002048,1713581454379,-3611.9,0.00015342,2]
[323002049,1713581454388,-670.84,0.00015342,2]
[323002050,1713581454398,-500.0,0.00015342,2]
[323002051,1713581454408,-500.0,0.00015342,2]
[323002052,1713581454417,-11826.41,0.00015342,2]
[323002053,1713581454426,-555.86,0.00015342,2]
[323002054,1713581454436,-500.0,0.00015342,2]
[323002055,1713581454446,-500.0,0.00015342,2]
[323002056,1713581454455,-500.0,0.00015342,2]
[323002057,1713581454465,-500.0,0.00015342,2]
[323002058,1713581454475,-4444.64,0.00015342,2]
[323002059,1713581454484,-842.46,0.00015342,2]
[323002060,1713581454494,-2113.76,0.00015342,2]
[323002061,1713581454504,-623.1,0.00015342,2]
[323002062,1713581454514,-500.0,0.00015342,2]
[323002063,1713581454523,-500.0,0.00015342,2]
[323002064,1713581454533,-500.0,0.00015342,2]
[323002065,1713581454543,-1422.66,0.00015342,2]
[323002066,1713581454552,-500.0,0.00015342,2]
[323002067,1713581454562,-503.37888612,0.00015342,2]
[323002068,1713581454572,-500.0,0.00015342,2]
[323002069,1713581454581,-500.0,0.00015342,2]
[323002070,1713581454591,-500.0,0.00015342,2]
[323002071,1713581454602,-500.0,0.00015342,2]
[323002072,1713581454612,-949.37,0.00015342,2]
[323002073,1713581454621,-1112.72,0.00015342,2]
[323002074,1713581454631,-501.87680403,0.00015342,2]
[323002075,1713581454640,-2389.37,0.00015342,2]
[323002076,1713581454651,-500.0,0.00015342,2]
[323002077,1713581454660,-500.0,0.00015342,2]
[323002078,1713581454671,-500.0,0.00015342,2]
[323002079,1713581454686,-544.41,0.00015342,2]
[323002080,1713581454696,-500.0,0.00015342,2]
[323002081,1713581454705,-634.86,0.00015342,2]
[323002082,1713581454715,-437.97256846,0.00015342,2]
[323002083,1713581454726,-500.0,0.00015342,2]
[323002084,1713581454824,-500.0,0.00015342,2]
[323002085,1713581454833,-754.87,0.00015342,2]
[323002086,1713581454843,-500.0,0.00015342,2]
[323002087,1713581454852,-1068.28,0.00015342,2]
[323002088,1713581454861,-504.25993276,0.00015342,2]
[323002089,1713581454870,-1096.65,0.00015342,2]
[323002090,1713581454879,-2547.96,0.00015342,2]
[323002091,1713581454888,-2878.28,0.00015342,2]
[323002092,1713581454897,-824.71,0.00015342,2]
[323002093,1713581454908,-500.0,0.00015342,2]
[323002094,1713581454917,-500.0,0.00015342,2]
[323002095,1713581454926,-1023.2,0.00015342,2]
[323002096,1713581454935,-500.0,0.00015342,2]
[323002097,1713581454945,-3014.73,0.00015342,2]
[323002098,1713581454954,-709.59,0.00015342,2]
[323002099,1713581454963,-2785.66,0.00015342,2]
[323002100,1713581454973,-505.7,0.00015342,2]
[323002101,1713581454982,-1704.38,0.00015342,2]
[323002102,1713581454991,-500.0,0.00015342,2]
[323002103,1713581455000,-1443.9,0.00015342,2]
[323002104,1713581455010,-500.0,0.00015342,2]
[323002105,1713581455019,-500.0,0.00015342,2]
[323002106,1713581455029,-500.0,0.00015342,2]
[323002107,1713581455038,-500.0,0.00015342,2]
[323002108,1713581455047,-612.58,0.00015342,2]
[323002109,1713581455056,-500.0,0.00015342,2]
[323002110,1713581455065,-500.0,0.00015342,2]
[323002111,1713581455074,-1557.95,0.00015342,2]
[323002112,1713581455083,-1107.18,0.00015342,2]
[323002113,1713581455092,-503.31931399,0.00015342,2]
[323002114,1713581455101,-500.0,0.00015342,2]
[323002115,1713581455111,-500.0,0.00015342,2]
[323002116,1713581455120,-500.0,0.00015342,2]
[323002117,1713581455129,-500.0,0.00015342,2]
[323002118,1713581455138,-3105.5,0.00015342,2]
[323002119,1713581455147,-402.43777256,0.00015342,2]
[323002120,1713581455157,-500.0,0.00015342,2]
[323002121,1713581455166,-4797.53,0.00015342,2]
[323002122,1713581455175,-1149.14,0.00015342,2]
[323002123,1713581455186,-1419.02,0.00015342,2]
[323002124,1713581455195,-504.94890668,0.00015342,2]
[323002125,1713581455204,-575.2,0.00015342,2]
[323002126,1713581455213,-985.93,0.00015342,2]
[323002127,1713581455222,-705.05,0.00015342,2]
[323002128,1713581455231,-505.02589149,0.00015342,2]
[323002129,1713581455239,-575.31,0.00015342,2]
[323002130,1713581455248,-1343.98,0.00015342,2]
[323002131,1713581455257,-500.0,0.00015342,2]
[323002132,1713581455266,-2149.85,0.00015342,2]
[323002133,1713581455275,-5825.98,0.00015342,2]
[323002134,1713581455285,-500.0,0.00015342,2]
[323002135,1713581455295,-527.71,0.00015342,2]
[323002136,1713581455305,-543.09,0.00015342,2]
[323002137,1713581455314,-3338.14,0.00015342,2]
[323002138,1713581455323,-2203.64,0.00015342,2]
[323002139,1713581455332,-500.0,0.00015342,2]
[323002140,1713581455341,-1509.39,0.00015342,2]
[323002141,1713581455351,-500.0,0.00015342,2]
[323002142,1713581455360,-5133.59,0.00015342,2]
[323002143,1713581455369,-150.0,0.00015342,2]
[323002144,1713581455378,-590.99,0.00015342,2]
[323002145,1713581455387,-861.05,0.00015342,2]
[323002146,1713581455396,-4791.15,0.00015342,2]
[323002147,1713581455406,-1777.82,0.00015342,2]
[323002148,1713581455415,-500.0,0.00015342,2]
[323002149,1713581455424,-226.42,0.00015342,2]
[323002150,1713581455433,-2656.42,0.00015342,2]
[323002151,1713581455444,-2527.92,0.00015342,2]
[323002152,1713581455454,-1832.6,0.00015342,2]
[323002153,1713581455463,-500.0,0.00015342,2]
[323002154,1713581455473,-500.0,0.00015342,2]
[323002155,1713581455482,-500.0,0.00015342,2]
[323002156,1713581455491,-500.0,0.00015342,2]
[323002157,1713581455502,-774.63,0.00015342,2]
[323002158,1713581455511,-2839.9,0.00015342,2]
[323002159,1713581455520,-500.0,0.00015342,2]
[323002160,1713581455530,-1862.59,0.00015342,2]
[323002161,1713581455539,-500.0,0.00015342,2]
[323002162,1713581455548,-500.0,0.00015342,2]
[323002163,1713581455558,-2003.87,0.00015342,2]
[323002164,1713581455567,-500.0,0.00015342,2]
[323002165,1713581455576,-500.0,0.00015342,2]
[323002166,1713581455585,-1015.47,0.00015342,2]
[323002167,1713581455595,-1829.03,0.00015342,2]
[323002168,1713581455605,-500.0,0.00015342,2]
[323002169,1713581455614,-2069.73,0.00015342,2]
[323002170,1713581455624,-1274.99,0.00015342,2]
[323002171,1713581455633,-500.0,0.00015342,2]
[323002172,1713581455642,-1777.25,0.00015342,2]
[323002173,1713581455653,-500.0,0.00015342,2]
[323002174,1713581455663,-923.84,0.00015342,2]
[323002175,1713581455672,-1659.92,0.00015342,2]
[323002176,1713581455686,-500.0,0.00015342,2]
[323002177,1713581455695,-500.0,0.00015342,2]
[323002178,1713581455704,-1002.15,0.00015342,2]
[323002179,1713581455714,-500.0,0.00015342,2]
[323002180,1713581455724,-638.86,0.00015342,2]
[323002181,1713581455733,-500.0,0.00015342,2]